fUSD/lending_fUSD_20251228
["ID","MTS","AMOUNT","RATE_DAILY","PERIOD"]
[399972356,1766958634727,-1099.98058356,0.00015121,2]
[399972357,1766958634737,-1000.0,0.00015121,2]
[399972358,1766958634746,-1000.0,0.00015121,2]
[399972359,1766958634755,-1000.0,0.00015121,2]
[399972360,1766958634764,-1000.0,0.00015121,2]
[399972361,1766958634774,-1000.0,0.00015121,2]
[399972362,1766958634783,-645.49615289,0.00015121,2]
[399972363,1766958634792,-1133.29597512,0.00015121,2]
[399972364,1766958634803,-1000.0,0.00015121,2]
[399972365,1766958634813,-1000.0,0.00015121,2]
[399972366,1766958634822,-1000.0,0.00015121,2]
[399972367,1766958634833,-367.26456673,0.00015121,2]
[399972368,1766958634845,-1000.0,0.00015121,2]
[399972369,1766958634855,-825.46719088,0.00015121,2]
[399972370,1766958634865,-500.0,0.00015121,2]
[399972371,1766958634875,-1000.0,0.00015121,2]
[399972372,1766958634885,-1000.0,0.00015121,2]
[399972373,1766958634895,-500.0,0.00015121,2]
[399972374,1766958634906,-500.0,0.00015121,2]
[399972375,1766958634916,-150.0,0.00015288,2]
[399972376,1766958634926,-150.0,0.00015288,2]
[399972377,1766958634936,-150.0,0.00015288,2]
[399972378,1766958634946,-298.69511274,0.00015288,2]
[399972379,1766958634956,-150.0,0.00015288,2]
[399972380,1766958634968,-150.0,0.00015288,2]
[399972381,1766958634977,-150.0,0.00015288,2]
[399972382,1766958634987,-150.0,0.00015288,2]
[399972383,1766958634996,-150.0,0.00015288,2]
[399972384,1766958635005,-150.0,0.00015288,2]
[399972385,1766958635014,-150.0,0.00015288,2]
[399972386,1766958635023,-150.0,0.00015288,2]
[399972387,1766958635034,-150.0,0.00015288,2]
[399972388,1766958635044,-150.0,0.00015288,2]
[399972389,1766958635053,-150.0,0.00015288,2]
[399972390,1766958635064,-11229.94040773,0.00015292,2]
[399972391,1766958635073,-1727.12,0.00015299,2]
[399972392,1766958635082,-500.0,0.00015307,2]
[399972393,1766958635091,-150.0,0.00015313,2]
[399972394,1766958635103,-150.0,0.00015322,2]
[399972395,1766958635114,-150.0,0.00015331,2]
[399972396,1766958635123,-150.0,0.00015336,2]
[399972397,1766958635134,-150.0,0.00015339,2]
[399972398,1766958635143,-150.0,0.00015339,2]
[399972399,1766958635153,-13009.11869563,0.0001534,2]
[399972400,1766958635163,-150.0,0.00015353,2]
[399972401,1766958635175,-150.0,0.00015356,2]
[399972402,1766958635186,-150.0,0.00015358,2]
[399972403,1766958635195,-970.09034207,0.0001536,2]
[399972404,1766958635207,-150.0,0.00015365,2]
[399972405,1766958635216,-150.0,0.00015375,2]
[399972406,1766958635227,-150.0,0.00015385,2]
[399972407,1766958635236,-150.0,0.0001539,2]
[399972408,1766958635247,-150.0,0.00015391,2]
[399972409,1766958635258,-150.0,0.00015391,2]
[399972410,1766958635267,-150.0,0.00015401,2]
[399972411,1766958635276,-150.0,0.00015416,2]
[399972412,1766958635285,-150.0,0.00015418,2]
[399972413,1766958635294,-150.0,0.00015418,2]
[399972414,1766958635303,-150.0,0.00015424,2]
[399972415,1766958635314,-150.0,0.00015429,2]
[399972416,1766958635322,-150.0,0.00015429,2]
[399972417,1766958635331,-150.0,0.00015433,2]
[399972418,1766958635341,-150.0,0.00015442,2]
[399972419,1766958635350,-150.0,0.00015442,2]
[399972420,1766958635359,-433.0,0.00015456,2]
[399972421,1766958635368,-150.0,0.00015458,2]
[399972422,1766958635377,-150.0,0.00015458,2]
[399972423,1766958635386,-150.0,0.00015462,2]
[399972424,1766958635395,-150.0,0.00015468,2]
[399972425,1766958635405,-10027.13268045,0.0001548,2]
[399972426,1766958635414,-150.0,0.00015482,2]
[399972427,1766958635423,-150.0,0.00015484,2]
[399972428,1766958635432,-150.0,0.00015492,2]
[399972429,1766958635442,-150.0,0.00015494,2]
[399972430,1766958635451,-150.0,0.00015494,2]
[399972431,1766958635460,-150.0,0.000155,2]
[399972432,1766958635469,-150.0,0.000155,2]
[399972433,1766958635478,-150.0,0.00015505,2]
[399972434,1766958635487,-150.0,0.00015514,2]
[399972435,1766958635497,-150.0,0.00015519,2]
[399972436,1766958635507,-150.0,0.00015525,2]
[399972437,1766958635516,-150.0,0.0001553,2]
[399972438,1766958635525,-150.0,0.00015545,2]
[399972439,1766958635535,-150.0,0.00015545,2]
[399972440,1766958635545,-150.0,0.00015549,2]
[399972441,1766958635554,-150.0,0.00015549,2]
[399972442,1766958635564,-150.0,0.00015559,2]
[399972443,1766958635573,-150.0,0.00015571,2]
[399972444,1766958635582,-150.0,0.00015571,2]
[399972445,1766958635593,-150.0,0.00015571,2]
[399972446,1766958635603,-1727.12,0.00015573,2]
[399972447,1766958635612,-201.8815823,0.00015574,2]
[399972448,1766958635622,-150.0,0.00015579,2]
[399972449,1766958635631,-195.54717431,0.00015581,2]
[399972450,1766958635641,-150.0,0.00015593,2]
[399972451,1766958635651,-150.0,0.00015593,2]
[399972452,1766958635660,-150.0,0.00015597,2]
[399972453,1766958635669,-150.0,0.00015597,2]
[399972454,1766958635679,-150.0,0.00015614,2]
[399972455,1766958635688,-150.0,0.00015622,2]
[399972456,1766958635697,-150.0,0.00015627,2]
[399972457,1766958635706,-150.0,0.00015627,2]
[399972458,1766958635715,-150.0,0.00015627,2]
[399972459,1766958635724,-150.0,0.00015627,2]
[399972460,1766958635734,-202.00364016,0.00015633,2]
[399972461,1766958635743,-150.0,0.00015636,2]
[399972462,1766958635753,-150.0,0.00015642,2]
[399972463,1766958635762,-150.0,0.00015648,2]
[399972464,1766958635771,-150.0,0.00015648,2]
[399972465,1766958635780,-740.25,0.00015649,2]
[399972466,1766958635789,-150.0,0.00015661,2]
[399972467,1766958635798,-500.0,0.00015668,2]
[399972468,1766958635808,-501.70391837,0.00015668,2]
[399972469,1766958635817,-941.4218678,0.00015668,2]
[399972470,1766958635826,-1500.0,0.00015668,2]
[399972471,1766958635835,-1500.0,0.00015668,2]
[399972472,1766958635845,-1500.0,0.00015668,2]
[399972473,1766958635854,-169.53966379,0.00015668,2]
[399972474,1766958635863,-1500.0,0.00015668,2]
[399972475,1766958635872,-1500.0,0.00015668,2]
[399972476,1766958635881,-1500.0,0.00015668,2]
[399972477,1766958635890,-1254.67001786,0.00015668,2]
[399972478,1766958635899,-1007.4808143,0.00015668,2]
[399972479,1766958635909,-1074.4149174,0.00015668,2]
[399972480,1766958635918,-1500.0,0.00015668,2]
[399972481,1766958635927,-634.28770415,0.00015668,2]
[399972482,1766958635937,-1500.0,0.00015668,2]
[399972483,1766958635946,-150.0,0.00015674,2]
[399972484,1766958635956,-150.0,0.00015676,2]
[399972485,1766958635965,-150.0,0.0001568,2]
[399972486,1766958635974,-150.0,0.0001568,2]
[399972487,1766958635983,-11229.94040773,0.00015694,2]
[399972488,1766958635993,-150.0,0.00015695,2]
[399972489,1766958636002,-150.0,0.00015699,2]
[399972490,1766958636012,-150.0,0.00015699,2]
[399972491,1766958636021,-150.0,0.00015712,2]
[399972492,1766958636030,-150.0,0.00015712,2]
[399972493,1766958636039,-150.0,0.00015712,2]
[399972494,1766958636049,-150.0,0.00015723,2]
[399972495,1766958636058,-150.0,0.00015724,2]
[399972496,1766958636067,-150.0,0.00015725,2]
[399972497,1766958636076,-150.0,0.00015729,2]
[399972498,1766958636086,-13009.11869563,0.0001573,2]
[399972499,1766958636095,-150.0,0.00015741,2]
[399972500,1766958636104,-150.0,0.00015745,2]
[399972501,1766958636113,-150.0,0.00015751,2]
[399972502,1766958636122,-150.0,0.00015751,2]
[399972503,1766958636132,-150.0,0.00015763,2]
[399972504,1766958636142,-150.0,0.00015767,2]
[399972505,1766958636153,-150.0,0.00015773,2]
[399972506,1766958636162,-150.0,0.00015777,2]
[399972507,1766958636175,-150.0,0.00015783,2]
[399972508,1766958636185,-150.0,0.00015797,2]
[399972509,1766958636194,-150.0,0.00015797,2]
[399972510,1766958636205,-150.0,0.00015802,2]
[399972511,1766958636216,-150.0,0.00015802,2]
[399972512,1766958636225,-150.0,0.0001581,2]
[399972513,1766958636237,-150.0,0.0001581,2]
[399972514,1766958636246,-587.0,0.00015816,2]
[399972515,1766958636258,-720.0,0.00015816,2]
[399972516,1766958636268,-587.0,0.00015816,2]
[399972517,1766958636278,-587.0,0.00015816,2]
[399972518,1766958636288,-150.0,0.00015822,2]
[399972519,1766958636297,-150.0,0.00015828,2]
[399972520,1766958636306,-150.0,0.00015831,2]
[399972521,1766958636316,-1727.12,0.00015847,2]
[399972522,1766958636326,-150.0,0.00015854,2]
[399972523,1766958636336,-150.0,0.00015854,2]
[399972524,1766958636345,-150.0,0.00015854,2]
[399972525,1766958636354,-150.0,0.00015854,2]
[399972526,1766958636363,-150.0,0.00015854,2]
[399972527,1766958636372,-150.0,0.00015854,2]
[399972528,1766958636381,-150.0,0.00015854,2]
[399972529,1766958636390,-150.0,0.00015865,2]
[399972530,1766958636399,-150.0,0.0001587,2]
[399972531,1766958636409,-970.09034207,0.00015873,2]
[399972532,1766958636418,-150.0,0.00015876,2]
[399972533,1766958636428,-150.0,0.0001588,2]
[399972534,1766958636437,-150.0,0.00015897,2]
[399972535,1766958636447,-150.0,0.00015899,2]
[399972536,1766958636456,-150.0,0.00015905,2]
[399972537,1766958636465,-150.0,0.00015905,2]
[399972538,1766958636474,-2351.0,0.00015915,2]
[399972539,1766958636483,-500.0,0.00015918,2]
[399972540,1766958636492,-150.0,0.00015919,2]
[399972541,1766958636502,-500.0,0.00015921,2]
[399972542,1766958636511,-150.0,0.00015925,2]
[399972543,1766958636520,-150.0,0.00015925,2]
[399972544,1766958636530,-150.0,0.00015931,2]
[399972545,1766958636539,-150.0,0.00015933,2]
[399972546,1766958636548,-150.0,0.00015941,2]
[399972547,1766958636558,-150.0,0.00015941,2]
[399972548,1766958636568,-166.12,0.00015947,2]
[399972549,1766958636577,-150.0,0.00015957,2]
[399972550,1766958636586,-150.0,0.00015957,2]
[399972551,1766958636596,-150.0,0.00015967,2]
[399972552,1766958636605,-150.0,0.00015967,2]
[399972553,1766958636615,-150.0,0.00015967,2]
[399972554,1766958636624,-150.0,0.00015967,2]
[399972555,1766958636633,-200.27562112,0.00015973,2]
[399972556,1766958636642,-502.71159199,0.00015973,2]
[399972557,1766958636651,-500.0,0.00015973,2]
[399972558,1766958636660,-500.0,0.00015973,2]
[399972559,1766958636669,-413.88399981,0.00015973,2]
[399972560,1766958636679,-500.0,0.00015973,2]
[399972561,1766958636689,-511.82107275,0.00015973,2]
[399972562,1766958636700,-163.47849716,0.00015973,2]
[399972563,1766958636709,-500.50631867,0.00015973,2]
[399972564,1766958636719,-500.0,0.00015973,2]
[399972565,1766958636731,-500.0,0.00015973,2]
[399972566,1766958636742,-500.0,0.00015973,2]
[399972567,1766958636751,-150.0,0.00015983,2]
[399972568,1766958636761,-150.0,0.00015985,2]
[399972569,1766958636771,-150.0,0.00015995,2]
[399972570,1766958636781,-150.0,0.00015995,2]
[399972571,1766958636790,-500.0,0.00015999,2]
[399972572,1766958636799,-500.0,0.00015999,2]
[399972573,1766958636809,-500.0,0.00015999,2]
[399972574,1766958636818,-150.0,0.00016001,2]
[399972575,1766958636827,-150.0,0.00016006,2]
[399972576,1766958636837,-150.0,0.00016008,2]
[399972577,1766958636847,-150.0,0.00016008,2]
[399972578,1766958636856,-150.0,0.00016016,2]
[399972579,1766958636865,-150.0,0.00016028,2]
[399972580,1766958636875,-3598.0,0.00016034,2]
[399972581,1766958636883,-150.0,0.00016034,2]
[399972582,1766958636893,-150.0,0.00016035,2]
[399972583,1766958636902,-162.0,0.0001604,2]
[399972584,1766958636911,-150.0,0.0001606,2]
[399972585,1766958636920,-150.0,0.0001606,2]
[399972586,1766958636929,-185.37020136,0.00016061,2]
[399972587,1766958636939,-150.0,0.00016064,2]
[399972588,1766958636948,-150.0,0.00016066,2]
[399972589,1766958636957,-150.0,0.00016069,2]
[399972590,1766958636967,-150.0,0.00016072,2]
[399972591,1766958636976,-150.0,0.00016072,2]
[399972592,1766958636986,-150.0,0.0001608,2]
[399972593,1766958636995,-150.0,0.00016086,2]
[399972594,1766958637005,-11229.94040773,0.00016096,2]
[399972595,1766958637014,-150.0,0.00016103,2]
[399972596,1766958637023,-150.0,0.00016111,2]
[399972597,1766958637033,-150.0,0.00016111,2]
[399972598,1766958637042,-150.0,0.00016113,2]
[399972599,1766958637051,-150.0,0.00016115,2]
[399972600,1766958637060,-13009.11869563,0.0001612,2]
[399972601,1766958637070,-1727.12,0.00016121,2]
[399972602,1766958637079,-216.26276468,0.00016121,2]
[399972603,1766958637088,-150.0,0.00016137,2]
[399972604,1766958637097,-150.0,0.00016137,2]
[399972605,1766958637106,-150.0,0.00016137,2]
[399972606,1766958637115,-150.0,0.00016137,2]
[399972607,1766958637124,-150.0,0.00016137,2]
[399972608,1766958637134,-150.0,0.00016137,2]
[399972609,1766958637143,-150.0,0.00016137,2]
[399972610,1766958637152,-150.0,0.00016137,2]
[399972611,1766958637161,-150.0,0.00016137,2]
[399972612,1766958637172,-1000.0,0.00016138,2]
[399972613,1766958637181,-151.0,0.00016143,2]
[399972614,1766958637190,-322.6107,0.00016146,2]
[399972615,1766958637199,-500.0,0.00016146,2]
[399972616,1766958637211,-553.64373807,0.00016146,2]
[399972617,1766958637221,-500.0,0.00016146,2]
[399972618,1766958637232,-500.0,0.00016146,2]
[399972619,1766958637243,-500.0,0.00016146,2]
[399972620,1766958637253,-500.0,0.00016146,2]
[399972621,1766958637263,-500.0,0.00016146,2]
[399972622,1766958637273,-500.0,0.00016146,2]
[399972623,1766958637284,-620.0,0.00016146,2]
[399972624,1766958637293,-500.0,0.00016146,2]
[399972625,1766958637304,-500.0,0.00016146,2]
[399972626,1766958637315,-250.0,0.00016146,2]
[399972627,1766958637325,-250.0,0.00016146,2]
[399972628,1766958637336,-250.0,0.00016146,2]
[399972629,1766958637346,-200.0,0.00016146,2]
[399972630,1766958637355,-500.0,0.00016146,2]
[399972631,1766958637364,-250.0,0.00016146,2]
[399972632,1766958637373,-207.4,0.00016146,2]
[399972633,1766958637383,-250.0,0.00016146,2]
[399972634,1766958637394,-500.0,0.00016146,2]
[399972635,1766958637404,-215.0738,0.00016146,2]
[399972636,1766958637413,-250.0,0.00016146,2]
[399972637,1766958637422,-500.0,0.00016146,2]
[399972638,1766958637432,-500.0,0.00016146,2]
[399972639,1766958637441,-223.0315306,0.00016146,2]
[399972640,1766958637450,-250.0,0.00016146,2]
[399972641,1766958637459,-500.0,0.00016146,2]
[399972642,1766958637469,-500.0,0.00016146,2]
[399972643,1766958637478,-231.28369723,0.00016146,2]
[399972644,1766958637488,-500.0,0.00016146,2]
[399972645,1766958637498,-500.0,0.00016146,2]
[399972647,1766958637508,-250.0,0.00016146,2]
[399972649,1766958637517,-239.84119403,0.00016146,2]
[399972651,1766958637528,-500.0,0.00016146,2]
[399972653,1766958637537,-500.0,0.00016146,2]
[399972655,1766958637546,-250.0,0.00016146,2]
[399972657,1766958637556,-250.0,0.00016146,2]
[399972658,1766958637566,-248.71531821,0.00016146,2]
[399972659,1766958637575,-500.0,0.00016146,2]
[399972660,1766958637585,-250.0,0.00016146,2]
[399972661,1766958637594,-284.76184806,0.00016146,2]
[399972662,1766958637603,-257.91778498,0.00016146,2]
[399972663,1766958637774,-500.0,0.00016146,2]
[399972664,1766958637784,-500.0,0.00016146,2]
[399972665,1766958637793,-250.0,0.00016146,2]
[399972666,1766958637802,-267.46074303,0.00016146,2]
[399972667,1766958637813,-259.6625457,0.00016146,2]
[399972668,1766958637823,-500.0,0.00016146,2]
[399972669,1766958637833,-250.0,0.00016146,2]
[399972670,1766958637844,-500.0,0.00016146,2]
[399972671,1766958637856,-500.0,0.00016146,2]
[399972672,1766958637866,-201.93286099,0.00016146,2]
[399972673,1766958637877,-500.0,0.00016146,2]
[399972674,1766958637889,-500.0,0.00016146,2]
[399972675,1766958637899,-500.0,0.00016146,2]
[399972676,1766958637910,-500.0,0.00016146,2]
[399972677,1766958637919,-500.0,0.00016146,2]
[399972678,1766958637931,-320.1146403,0.00016146,2]
[399972679,1766958637942,-1000.0,0.00016146,2]
[399972680,1766958637951,-1000.0,0.00016146,2]
[399972681,1766958637960,-500.0,0.00016146,2]
[399972683,1766958637970,-500.0,0.00016146,2]
[399972685,1766958637979,-500.0,0.00016146,2]
[399972687,1766958637988,-500.0,0.00016146,2]
[399972689,1766958637997,-282.13607366,0.00016146,2]
[399972691,1766958638006,-153.47713146,0.00016146,2]
[399972693,1766958638015,-20359.97448696,0.0001615,2]
[399972695,1766958638024,-150.0,0.00016159,2]
[399972697,1766958638034,-150.0,0.00016161,2]
[399972699,1766958638043,-150.0,0.00016163,2]
[399972701,1766958638053,-150.0,0.00016163,2]
[399972702,1766958638062,-150.0,0.00016171,2]
[399972704,1766958638071,-150.0,0.00016188,2]
[399972706,1766958638081,-150.0,0.00016194,2]
[399972708,1766958638090,-500.0,0.00016199,2]
[399972710,1766958638100,-1000.0,0.000162,2]
[399972712,1766958638109,-150.0,0.00016202,2]
[399972714,1766958638117,-150.0,0.00016202,2]
[399972716,1766958638127,-150.0,0.00016205,2]
[399972718,1766958638136,-150.0,0.00016208,2]
[399972720,1766958638147,-150.0,0.0001621,2]
[399972722,1766958638156,-150.0,0.00016214,2]
[399972724,1766958638166,-150.0,0.00016214,2]
[399972726,1766958638179,-2000.0,0.00016216,2]
[399972728,1766958638188,-2000.0,0.00016216,2]
[399972730,1766958638197,-2000.0,0.00016216,2]
[399972732,1766958638207,-2000.0,0.00016216,2]
[399972734,1766958638217,-2000.0,0.00016216,2]
[399972736,1766958638226,-2000.0,0.00016216,2]
[399972738,1766958638235,-2000.0,0.00016216,2]
[399972740,1766958638247,-2000.0,0.00016216,2]
[399972742,1766958638256,-500.0,0.00016219,2]
[399972744,1766958638266,-500.0,0.00016219,2]
[399972746,1766958638276,-523.47649377,0.00016219,2]
[399972749,1766958638287,-500.0,0.00016219,2]
[399972751,1766958638296,-500.0,0.00016219,2]
[399972753,1766958638305,-200.0,0.0001622,2]
[399972755,1766958638315,-150.0,0.00016239,2]
[399972757,1766958638324,-150.0,0.0001624,2]
[399972759,1766958638334,-150.0,0.00016246,2]
[399972761,1766958638343,-150.0,0.00016258,2]
[399972763,1766958638352,-150.0,0.00016266,2]
[399972765,1766958638362,-150.0,0.00016266,2]
[399972767,1766958638372,-150.0,0.00016268,2]
[399972769,1766958638382,-150.0,0.00016273,2]
[399972771,1766958638392,-150.0,0.00016279,2]
[399972773,1766958638401,-150.0,0.00016279,2]
[399972775,1766958638410,-150.0,0.00016289,2]
[399972777,1766958638419,-150.0,0.00016291,2]
[399972779,1766958638428,-150.0,0.00016307,2]
[399972781,1766958638438,-150.0,0.00016307,2]
[399972783,1766958638448,-150.0,0.00016307,2]
[399972785,1766958638457,-150.0,0.00016307,2]
[399972787,1766958638467,-150.0,0.00016317,2]
[399972789,1766958638476,-150.0,0.00016317,2]
[399972791,1766958638486,-500.0,0.00016321,2]
[399972793,1766958638496,-150.0,0.00016333,2]
[399972795,1766958638505,-150.0,0.00016333,2]
[399972797,1766958638515,-150.0,0.00016341,2]
[399972798,1766958638525,-150.0,0.00016343,2]
[399972801,1766958638534,-172.21833333,0.00016343,2]
[399972803,1766958638545,-150.0,0.00016349,2]
[399972805,1766958638555,-150.0,0.00016349,2]
[399972807,1766958638564,-150.0,0.00016355,2]
[399972809,1766958638574,-150.0,0.00016369,2]
[399972811,1766958638583,-150.0,0.00016369,2]
[399972812,1766958638593,-150.0,0.00016375,2]
[399972814,1766958638603,-150.0,0.00016377,2]
[399972817,1766958638612,-970.09034207,0.00016387,2]
[399972819,1766958638622,-250.0,0.00016393,2]
[399972821,1766958638631,-150.0,0.00016394,2]
[399972823,1766958638641,-1727.12,0.00016395,2]
[399972825,1766958638650,-150.0,0.00016398,2]
[399972827,1766958638659,-1000.0,0.000164,2]
[399972828,1766958638669,-5888.0,0.000164,2]
[399972830,1766958638678,-500.0,0.00016402,2]
[399972832,1766958638688,-500.0,0.00016402,2]
[399972834,1766958638696,-3598.0,0.00016403,2]
[399972836,1766958638706,-150.0,0.00016404,2]
[399972838,1766958638715,-150.0,0.00016409,2]
[399972841,1766958638725,-150.0,0.0001642,2]
[399972843,1766958638734,-150.0,0.0001642,2]
[399972845,1766958638744,-150.0,0.0001642,2]
[399972847,1766958638753,-150.0,0.0001642,2]
[399972849,1766958638763,-150.0,0.0001642,2]
[399972851,1766958638772,-150.0,0.0001642,2]
[399972852,1766958638781,-150.0,0.0001642,2]
[399972855,1766958638790,-1607.9,0.00016438,2]
[399972857,1766958638800,-500.0,0.00016438,2]
[399972859,1766958638809,-500.0,0.00016438,2]
[399972861,1766958638818,-500.0,0.00016438,2]
[399972863,1766958638827,-500.0,0.00016438,2]
[399972865,1766958638836,-500.0,0.00016438,2]
[399972866,1766958638845,-419.45731543,0.00016438,2]
[399972868,1766958638855,-500.0,0.00016438,2]
[399972871,1766958638864,-500.0,0.00016438,2]
[399972872,1766958638874,-500.0,0.00016438,2]
[399972874,1766958638884,-500.0,0.00016438,2]
[399972877,1766958638894,-500.0,0.00016438,2]
[399972879,1766958638903,-500.0,0.00016438,2]
[399972881,1766958638912,-500.0,0.00016438,2]
[399972882,1766958638921,-500.0,0.00016438,2]
[399972884,1766958638931,-500.0,0.00016438,2]
[399972887,1766958638941,-500.0,0.00016438,2]
[399972889,1766958638950,-500.0,0.00016438,2]
[399972891,1766958638960,-500.0,0.00016438,2]
[399972893,1766958638969,-500.0,0.00016438,2]
[399972895,1766958638979,-500.0,0.00016438,2]
[399972897,1766958638989,-500.0,0.00016438,2]
[399972899,1766958638999,-500.0,0.00016438,2]
[399972901,1766958639009,-500.0,0.00016438,2]
[399972903,1766958639019,-500.0,0.00016438,2]
[399972905,1766958639028,-500.0,0.00016438,2]
[399972907,1766958639038,-500.0,0.00016438,2]
[399972909,1766958639048,-500.0,0.00016438,2]
[399972911,1766958639058,-500.0,0.00016438,2]
[399972913,1766958639067,-500.0,0.00016438,2]
[399972915,1766958639077,-500.0,0.00016438,2]
[399972917,1766958639086,-500.0,0.00016438,2]
[399972919,1766958639095,-500.0,0.00016438,2]
[399972921,1766958639105,-500.0,0.00016438,2]
[399972923,1766958639114,-500.0,0.00016438,2]
[399972925,1766958639124,-500.0,0.00016438,2]
[399972927,1766958639134,-500.0,0.00016438,2]
[399972929,1766958639143,-500.0,0.00016438,2]
[399972931,1766958639153,-500.0,0.00016438,2]
[399972933,1766958639163,-500.0,0.00016438,2]
[399972935,1766958639176,-500.0,0.00016438,2]
[399972937,1766958639186,-500.0,0.00016438,2]
[399972939,1766958639196,-500.0,0.00016438,2]
[399972941,1766958639207,-500.0,0.00016438,2]
[399972944,1766958639217,-500.0,0.00016438,2]
[399972946,1766958639226,-500.0,0.00016438,2]
[399972948,1766958639236,-500.0,0.00016438,2]
[399972950,1766958639247,-500.0,0.00016438,2]
[399972952,1766958639256,-500.0,0.00016438,2]
[399972954,1766958639265,-500.0,0.00016438,2]
[399972956,1766958639274,-500.0,0.00016438,2]
[399972958,1766958639284,-500.0,0.00016438,2]
[399972960,1766958639295,-500.0,0.00016438,2]
[399972962,1766958639304,-500.0,0.00016438,2]
[399972963,1766958639314,-500.0,0.00016438,2]
[399972966,1766958639323,-500.0,0.00016438,2]
[399972967,1766958639332,-500.0,0.00016438,2]
[399972970,1766958639342,-500.0,0.00016438,2]
[399972971,1766958639351,-500.0,0.00016438,2]
[399972973,1766958639360,-500.0,0.00016438,2]
[399972975,1766958639370,-500.0,0.00016438,2]
[399972977,1766958639380,-500.0,0.00016438,2]
[399972979,1766958639390,-500.0,0.00016438,2]
[399972981,1766958639400,-500.0,0.00016438,2]
[399972983,1766958639410,-357.71747949,0.00016438,2]
[399972984,1766958639419,-500.0,0.00016438,2]
[399972985,1766958639429,-500.0,0.00016438,2]
[399972986,1766958639439,-500.0,0.00016438,2]
[399972987,1766958639449,-500.0,0.00016438,2]
[399972988,1766958639458,-500.0,0.00016438,2]
[399972989,1766958639468,-500.0,0.00016438,2]
[399972990,1766958639477,-500.0,0.00016438,2]
[399972991,1766958639487,-500.0,0.00016438,2]
[399972992,1766958639496,-500.0,0.00016438,2]
[399972993,1766958639507,-499.99999999,0.00016438,2]
[399972994,1766958639516,-500.0,0.00016438,2]
[399972995,1766958639527,-500.0,0.00016438,2]
[399972996,1766958639537,-500.0,0.00016438,2]
[399972997,1766958639548,-500.0,0.00016438,2]
[399972998,1766958639558,-500.0,0.00016438,2]
[399972999,1766958639568,-500.0,0.00016438,2]
[399973000,1766958639578,-500.0,0.00016438,2]
[399973001,1766958639588,-7920.24,0.00016438,2]
[399973003,1766958639598,-150.0,0.00016443,2]
[399973005,1766958639607,-150.0,0.00016446,2]
[399973007,1766958639616,-150.0,0.00016452,2]
[399973009,1766958639626,-150.0,0.00016464,2]
[399973011,1766958639636,-150.0,0.00016464,2]
[399973013,1766958639646,-150.0,0.00016472,2]
[399973015,1766958639655,-150.0,0.00016472,2]
[399973017,1766958639665,-150.0,0.00016477,2]
[399973019,1766958639675,-150.0,0.00016477,2]
[399973021,1766958639684,-150.0,0.00016491,2]
[399973023,1766958639694,-150.0,0.00016497,2]